bitfinex-derivatives/quotes_BNBF0:USTF0_20250603
["timestamp","ask_amount","ask_price","bid_price","bid_amount"]
[1748979898500,1.00646963,665.28,665.15,0.30068405]
[1748979898698,1.00646963,665.27,665.15,0.30068405]
[1748979898899,1.1253674,665.51,665.15,0.30068405]
[1748979898900,1.00646963,665.26,665.15,0.30068405]
[1748979899103,1.1253674,665.51,665.15,0.30068405]
[1748979899104,1.00646963,665.25,665.15,0.30068405]
[1748979899401,1.00646963,665.24,665.15,0.30068405]
[1748979899600,1.00646963,665.23,665.15,0.30068405]
[1748979899801,1.00646963,665.22,665.15,0.30068405]
[1748979900006,1.1253674,665.51,665.15,0.30068405]
[1748979900007,1.00646963,665.21,665.15,0.30068405]
[1748979900202,1.1253674,665.51,665.15,0.30068405]
[1748979900402,2.13178086,665.5,665.15,0.30068405]
[1748979900606,1.00641333,665.49,665.15,0.30068405]
[1748979900902,1.00641333,665.48,665.15,0.30068405]
[1748979901105,1.00641333,665.47,665.15,0.30068405]
[1748979901300,1.00641333,665.46,665.15,0.30068405]
[1748979901505,1.00641333,665.45,665.15,0.30068405]
[1748979901704,1.00641333,665.44,665.15,0.30068405]
[1748979901902,1.00641333,665.43,665.15,0.30068405]
[1748979902101,1.00641333,665.42,665.15,0.30068405]
[1748979902304,1.00641333,665.41,665.15,0.30068405]
[1748979902505,1.12528432,665.5,665.15,0.30068405]
[1748979902506,1.00641333,665.4,665.15,0.30068405]
[1748979902705,3.72968431,666.47,665.15,0.30068405]
[1748979902706,1.00641333,665.39,665.15,0.30068405]
[1748979902906,1.00641333,665.38,665.15,0.30068405]
[1748979903208,1.00641333,665.37,665.15,0.30068405]
[1748979903416,1.00638045,665.36,665.15,0.30068405]
[1748979903610,3.72968431,666.3,665.15,0.30068405]
[1748979903611,1.00637862,665.35,665.15,0.30068405]
[1748979903804,1.00637862,665.34,665.15,0.30068405]
[1748979904002,1.00637862,665.33,665.15,0.30068405]
[1748979904207,1.00637862,665.32,665.15,0.30068405]
[1748979904406,1.00637862,665.31,665.15,0.30068405]
[1748979904604,1.00637862,665.3,665.15,0.30068405]
[1748979904804,1.00637862,665.29,665.15,0.30068405]
[1748979905006,1.00637862,665.28,665.15,0.30068405]
[1748979905207,1.00637862,665.27,665.15,0.30068405]
[1748979905507,1.00637862,665.26,665.15,0.30068405]
[1748979905713,1.00637862,665.25,665.15,0.30068405]
[1748979906004,1.00637862,665.24,665.15,0.30068405]
[1748979906208,1.00637862,665.23,665.15,0.30068405]
[1748979906408,1.00637862,665.22,665.15,0.30068405]
[1748979906605,1.00637862,665.21,665.15,0.30068405]
[1748979906809,1.12524567,665.41,665.15,0.30068405]
[1748979906810,1.00637862,665.2,665.15,0.30068405]
[1748979907109,1.00637862,665.19,665.15,0.30068405]
[1748979907310,1.00791434,665.18,665.15,0.30068405]
[1748979907506,1.12531896,665.41,665.15,0.30068405]
[1748979907709,1.00791457,665.4,665.15,0.30068405]
[1748979907911,1.00791457,665.39,665.15,0.30068405]
[1748979908110,1.00791457,665.38,665.15,0.30068405]
[1748979908310,1.00791457,665.37,665.15,0.30068405]
[1748979908507,1.00791457,665.36,665.15,0.30068405]
[1748979908711,1.00791457,665.35,665.15,0.30068405]
[1748979909012,1.00791457,665.34,665.15,0.30068405]
[1748979909211,1.00791457,665.33,665.15,0.30068405]
[1748979909507,1.00791457,665.32,665.15,0.30068405]
[1748979909711,1.00791457,665.31,665.15,0.30068405]
[1748979909912,1.00791457,665.3,665.15,0.30068405]
[1748979910112,1.12531896,665.41,665.15,0.30068405]
[1748979910113,1.00791457,665.29,665.15,0.30068405]
[1748979910313,1.00791457,665.28,665.15,0.30068405]
[1748979910510,1.00791457,665.27,665.15,0.30068405]
[1748979910711,1.00791457,665.26,665.15,0.30068405]
[1748979910908,1.00791457,665.25,665.15,0.30068405]
[1748979911107,1.00791457,665.24,665.15,0.30068405]
[1748979911310,1.49869448,665.52,665.15,0.30068405]
[1748979911513,1.12535156,665.39,665.15,0.30068405]
[1748979911714,1.0083021,665.38,665.15,0.30068405]
[1748979911909,1.0083021,665.37,665.15,0.30068405]
[1748979912109,1.12535156,665.39,665.15,0.30068405]
[1748979912110,1.0083021,665.36,665.15,0.30068405]
[1748979912313,1.0083021,665.35,665.15,0.30068405]
[1748979912614,1.0083021,665.34,665.15,0.30068405]
[1748979912813,1.0083021,665.33,665.15,0.30068405]
[1748979913006,1.0083021,665.32,665.15,0.30068405]
[1748979913210,1.0083021,665.31,665.15,0.30068405]
[1748979913408,1.0083021,665.3,665.15,0.30068405]
[1748979913610,1.0083021,665.29,665.15,0.30068405]
[1748979913809,1.0083021,665.28,665.15,0.30068405]
[1748979914008,1.0083021,665.27,665.15,0.30068405]
[1748979914212,1.0083021,665.26,665.15,0.30068405]
[1748979914516,1.0083021,665.25,665.15,0.30068405]
[1748979914814,1.0083021,665.24,665.15,0.30068405]
[1748979915112,1.0083021,665.23,665.15,0.30068405]
[1748979915313,1.49869448,665.51,665.15,0.30068405]
[1748979915515,3.72968431,666.14,665.15,0.30068405]
[1748979915516,1.12534622,665.37,665.15,0.30068405]
[1748979915812,1.00807986,665.36,665.15,0.30068405]
[1748979916015,1.00807986,665.35,665.15,0.30068405]
[1748979916314,1.00807986,665.34,665.15,0.30068405]
[1748979916614,1.00807986,665.33,665.15,0.30068405]
[1748979916814,1.00807986,665.32,665.15,0.30068405]
[1748979917014,1.00807986,665.31,665.15,0.30068405]
[1748979917215,1.00807986,665.3,665.15,0.30068405]
[1748979917416,1.00807986,665.29,665.15,0.30068405]
[1748979917612,1.00807986,665.28,665.15,0.30068405]
[1748979917808,1.00807986,665.27,665.15,0.30068405]
[1748979918008,1.00807986,665.26,665.15,0.30068405]
[1748979918210,1.00807986,665.25,665.15,0.30068405]
[1748979918414,1.00807986,665.24,665.15,0.30068405]
[1748979918613,1.00807986,665.23,665.15,0.30068405]
[1748979918815,1.00807986,665.22,665.15,0.30068405]
[1748979919114,1.00807986,665.21,665.15,0.30068405]
[1748979919315,1.49869448,665.51,665.15,0.30068405]
[1748979919512,1.12527781,665.38,665.15,0.30068405]
[1748979919718,1.00956806,665.37,665.15,0.30068405]
[1748979920015,1.00956806,665.36,665.15,0.30068405]
[1748979920208,1.00956806,665.35,665.15,0.30068405]
[1748979920410,1.00956806,665.34,665.15,0.30068405]
[1748979920615,1.00956806,665.33,665.15,0.30068405]
[1748979920812,3.72968431,666.04,665.15,0.30068405]
[1748979920813,1.00956806,665.32,665.15,0.30068405]
[1748979921016,1.00956806,665.31,665.15,0.30068405]
[1748979921215,1.00956806,665.3,665.15,0.30068405]
[1748979921418,1.49869448,665.52,665.15,0.30068405]
[1748979921619,1.12523294,665.4,665.15,0.30068405]
[1748979921814,1.00951168,665.39,665.15,0.30068405]
[1748979922012,1.00951168,665.38,665.15,0.30068405]
[1748979922213,1.00951168,665.37,665.15,0.30068405]
[1748979922515,1.00951168,665.36,665.15,0.30068405]
[1748979922717,1.00951168,665.35,665.15,0.30068405]
[1748979922914,1.00951168,665.34,665.15,0.30068405]
[1748979923120,1.50031059,665.61,665.15,0.30068405]
[1748979923318,1.12507002,665.48,665.15,0.30068405]
[1748979923513,1.00937506,665.47,665.15,0.30068405]
[1748979923714,1.00937506,665.46,665.15,0.30068405]
[1748979924018,1.00937506,665.45,665.15,0.30068405]
[1748979924221,1.00937506,665.44,665.15,0.30068405]
[1748979924419,1.00937506,665.43,665.15,0.30068405]
[1748979924620,1.00937506,665.42,665.15,0.30068405]
[1748979924820,1.00937506,665.41,665.15,0.30068405]
[1748979925115,1.00937506,665.4,665.15,0.30068405]
[1748979925314,1.00937506,665.39,665.15,0.30068405]
[1748979925516,1.00937506,665.38,665.15,0.30068405]
[1748979925819,1.00937506,665.37,665.15,0.30068405]
[1748979926017,1.00937506,665.36,665.15,0.30068405]
[1748979926218,1.00937506,665.35,665.15,0.30068405]
[1748979926418,1.00937506,665.34,665.15,0.30068405]
[1748979926617,1.00937506,665.33,665.15,0.30068405]
[1748979926921,1.00937506,665.32,665.15,0.30068405]
[1748979927122,1.00935711,665.31,665.15,0.30068405]
[1748979927320,1.00935711,665.3,665.15,0.30068405]
[1748979927522,1.00935711,665.29,665.15,0.30068405]
[1748979927716,1.00935711,665.28,665.15,0.30068405]
[1748979927918,1.00935711,665.27,665.15,0.30068405]
[1748979928115,1.00935711,665.26,665.15,0.30068405]
[1748979928319,1.00932462,665.25,665.15,0.30068405]
[1748979928517,1.12483334,665.51,665.15,0.30068405]
[1748979928721,2.2432833,665.79,665.15,0.30068405]
[1748979928920,1.12480709,665.51,665.15,0.30068405]
[1748979929122,1.00930089,665.5,665.15,0.30068405]
[1748979929322,1.00930089,665.49,665.15,0.30068405]
[1748979929522,1.00930089,665.48,665.15,0.30068405]
[1748979929724,1.00930089,665.47,665.15,0.30068405]
[1748979929924,1.00930089,665.46,665.15,0.30068405]
[1748979930125,1.00930089,665.45,665.15,0.30068405]
[1748979930325,1.00930089,665.44,665.15,0.30068405]
[1748979930526,1.00930089,665.43,665.15,0.30068405]
[1748979930727,3.72968431,666.36,665.15,0.30068405]
[1748979930728,1.00930089,665.42,665.15,0.30068405]
[1748979930923,1.00930089,665.41,665.15,0.30068405]
[1748979931121,1.00930089,665.4,665.15,0.30068405]
[1748979931321,1.00930089,665.39,665.15,0.30068405]
[1748979931625,1.00930089,665.38,665.15,0.30068405]
[1748979931822,1.00930089,665.37,665.15,0.30068405]
[1748979932021,1.12480709,665.47,665.15,0.30068405]
[1748979932022,1.00930089,665.36,665.15,0.30068405]
[1748979932222,1.00930089,665.35,665.15,0.30068405]
[1748979932426,1.00930089,665.34,665.15,0.30068405]
[1748979932626,1.00930089,665.33,665.15,0.30068405]
[1748979932825,1.00930089,665.32,665.15,0.30068405]
[1748979933022,1.00930089,665.31,665.15,0.30068405]
[1748979933327,1.00930089,665.3,665.15,0.30068405]
[1748979933529,1.00930089,665.29,665.15,0.30068405]
[1748979933729,1.00930089,665.28,665.15,0.30068405]
[1748979934029,1.00930089,665.27,665.15,0.30068405]
[1748979934229,1.00930089,665.26,665.15,0.30068405]
[1748979934530,1.00930089,665.25,665.15,0.30068405]
[1748979934733,1.12480709,665.47,665.15,0.30068405]
[1748979934734,1.00930089,665.24,665.15,0.30068405]
[1748979935031,1.12480709,665.47,665.15,0.30068405]
[1748979935032,1.01000257,665.23,665.15,0.30068405]
[1748979935224,1.01000257,665.22,665.15,0.30068405]
[1748979935430,1.124852,665.47,665.15,0.30068405]
[1748979935730,2.13485254,665.46,665.15,0.30068405]
[1748979935930,1.01000054,665.45,665.15,0.30068405]
[1748979936130,1.01000054,665.44,665.15,0.30068405]
[1748979936325,1.01000054,665.43,665.15,0.30068405]
[1748979936526,1.01000054,665.42,665.15,0.30068405]
[1748979936730,1.01000054,665.41,665.15,0.30068405]
[1748979936926,1.01000054,665.4,665.15,0.30068405]
[1748979937124,1.01000054,665.39,665.15,0.30068405]
[1748979937326,1.01000054,665.38,665.15,0.30068405]
[1748979937525,1.01000054,665.37,665.15,0.30068405]
[1748979937729,1.01000054,665.36,665.15,0.30068405]
[1748979937929,1.01000054,665.35,665.15,0.30068405]
[1748979938130,1.01000054,665.34,665.15,0.30068405]
[1748979938327,1.01000054,665.33,665.15,0.30068405]
[1748979938630,1.01000054,665.32,665.15,0.30068405]
[1748979938826,1.49974279,665.54,665.15,0.30068405]
[1748979939032,1.12489499,665.43,665.15,0.30068405]
[1748979939232,1.00951922,665.42,665.15,0.30068405]
[1748979939427,1.00951922,665.41,665.15,0.30068405]
[1748979939625,1.00951922,665.4,665.15,0.30068405]
[1748979939830,1.00951922,665.39,665.15,0.30068405]
[1748979940026,1.00951922,665.38,665.15,0.30068405]
[1748979940332,1.12489499,665.44,665.15,0.30068405]
[1748979940333,1.00951922,665.37,665.15,0.30068405]
[1748979940530,1.00951922,665.36,665.15,0.30068405]
[1748979940728,1.00951922,665.35,665.15,0.30068405]
[1748979940925,1.12489499,665.44,665.15,0.30068405]
[1748979940926,1.00951922,665.34,665.15,0.30068405]
[1748979941125,1.00951922,665.33,665.15,0.30068405]
[1748979941327,1.00951922,665.32,665.15,0.30068405]
[1748979941531,1.00951922,665.31,665.15,0.30068405]
[1748979941733,1.00951922,665.3,665.15,0.30068405]
[1748979941928,1.00951922,665.29,665.15,0.30068405]
[1748979942133,1.00951922,665.28,665.15,0.30068405]
[1748979942335,1.01107349,665.27,665.15,0.30068405]
[1748979942637,1.12489499,665.48,665.15,0.30068405]
[1748979942934,1.01104814,665.47,665.15,0.30068405]
[1748979943136,1.01104814,665.46,665.15,0.30068405]
[1748979943334,1.01104814,665.45,665.15,0.30068405]
[1748979943536,1.01104814,665.44,665.15,0.30068405]
[1748979943736,1.01104814,665.43,665.15,0.30068405]
[1748979943936,1.01104814,665.42,665.15,0.30068405]
[1748979944136,1.01104814,665.41,665.15,0.30068405]
[1748979944436,1.01104814,665.4,665.15,0.30068405]
[1748979944637,1.01104814,665.39,665.15,0.30068405]
[1748979944833,1.01104814,665.38,665.15,0.30068405]
[1748979945036,1.01104814,665.37,665.15,0.30068405]
[1748979945233,1.01104814,665.36,665.15,0.30068405]
[1748979945439,1.01104814,665.35,665.15,0.30068405]
[1748979945632,1.01104814,665.34,665.15,0.30068405]
[1748979945939,1.01104814,665.33,665.15,0.30068405]
[1748979946138,1.01104814,665.32,665.15,0.30068405]
[1748979946338,1.01104814,665.31,665.15,0.30068405]
[1748979946540,1.01104814,665.3,665.15,0.30068405]
[1748979946737,1.01128852,665.29,665.15,0.30068405]
[1748979946935,1.01128852,665.28,665.15,0.30068405]
[1748979947239,1.01128852,665.27,665.15,0.30068405]
[1748979947434,1.12473433,665.47,665.15,0.30068405]
[1748979947637,1.0112762,665.46,665.15,0.30068405]
[1748979947838,1.0112762,665.45,665.15,0.30068405]
[1748979948039,1.0112762,665.44,665.15,0.30068405]
[1748979948240,1.0112762,665.43,665.15,0.30068405]
[1748979948536,1.0112762,665.42,665.15,0.30068405]
[1748979948737,1.0112762,665.41,665.15,0.30068405]
[1748979949036,1.0112762,665.4,665.15,0.30068405]
[1748979949244,1.0112762,665.39,665.15,0.30068405]
[1748979949443,1.0112762,665.38,665.15,0.30068405]
[1748979949743,1.0112762,665.37,665.15,0.30068405]
[1748979949936,1.0112762,665.36,665.15,0.30068405]
[1748979950138,1.0112762,665.35,665.15,0.30068405]
[1748979950339,1.0112762,665.34,665.15,0.30068405]
[1748979950638,1.0112762,665.33,665.15,0.30068405]
[1748979950839,1.01128388,665.32,665.15,0.30068405]
[1748979951038,1.01128388,665.31,665.15,0.30068405]
[1748979951341,1.01128388,665.3,665.15,0.30068405]
[1748979951537,1.12436184,665.65,665.15,0.30068405]
[1748979951743,1.01119384,665.64,665.15,0.30068405]
[1748979951935,1.01119384,665.63,665.15,0.30068405]
[1748979952139,1.01119384,665.62,665.15,0.30068405]
[1748979952339,1.01119384,665.61,665.15,0.30068405]
[1748979952536,1.12436184,665.65,665.15,0.30068405]
[1748979952537,1.01119384,665.6,665.15,0.30068405]
[1748979952738,1.01119384,665.59,665.15,0.30068405]
[1748979952937,2.13555568,665.58,665.15,0.30068405]
[1748979953140,1.01119384,665.57,665.15,0.30068405]
[1748979953341,1.01119384,665.56,665.15,0.30068405]
[1748979953541,1.01119384,665.55,665.15,0.30068405]
[1748979953742,1.01119384,665.54,665.15,0.30068405]
[1748979953942,1.01119384,665.53,665.15,0.30068405]
[1748979954143,1.01119384,665.52,665.15,0.30068405]
[1748979954443,1.01119384,665.51,665.15,0.30068405]
[1748979954652,1.01119384,665.5,665.15,0.30068405]
[1748979954838,1.01116274,665.49,665.15,0.30068405]
[1748979955040,1.01116274,665.48,665.15,0.30068405]
[1748979955243,1.01116274,665.47,665.15,0.30068405]
[1748979955443,3.72968431,666.6,665.15,0.30068405]
[1748979955444,1.01116274,665.46,665.15,0.30068405]
[1748979955644,1.01116274,665.45,665.15,0.30068405]
[1748979955845,1.01116274,665.44,665.15,0.30068405]
[1748979956144,1.01116274,665.43,665.15,0.30068405]
[1748979956344,1.01116274,665.42,665.15,0.30068405]
[1748979956545,1.01116274,665.41,665.15,0.30068405]
[1748979956744,1.12423404,665.51,665.15,0.30068405]
[1748979956745,1.01116274,665.4,665.15,0.30068405]
[1748979956944,1.01116274,665.39,665.15,0.30068405]
[1748979957145,1.01116274,665.38,665.15,0.30068405]
[1748979957345,1.01116274,665.37,665.15,0.30068405]
[1748979957647,1.01116274,665.36,665.15,0.30068405]
[1748979957846,1.01116274,665.35,665.15,0.30068405]
[1748979958041,1.01116274,665.34,665.15,0.30068405]
[1748979958242,1.01116274,665.33,665.15,0.30068405]
[1748979958447,1.01116274,665.32,665.15,0.30068405]
[1748979958644,1.01116274,665.31,665.15,0.30068405]
[1748979958844,1.01067983,665.3,665.15,0.30068405]
[1748979959041,1.01067983,665.29,665.15,0.30068405]
[1748979959347,1.12417697,665.51,665.15,0.30068405]
[1748979959648,1.01066006,665.5,665.15,0.30068405]
[1748979959947,1.01066006,665.49,665.15,0.30068405]
[1748979960247,1.01066006,665.48,665.15,0.30068405]
[1748979960449,1.01066006,665.47,665.15,0.30068405]
[1748979960649,1.01066006,665.46,665.15,0.30068405]
[1748979960850,1.01066006,665.45,665.15,0.30068405]
[1748979961044,1.01066006,665.44,665.15,0.30068405]
[1748979961349,1.01068431,665.43,665.15,0.30068405]
[1748979961546,1.01068431,665.42,665.15,0.30068405]
[1748979961750,1.01068431,665.41,665.15,0.30068405]
[1748979961947,1.01068431,665.4,665.15,0.30068405]
[1748979962151,1.01068431,665.39,665.15,0.30068405]
[1748979962450,1.01068431,665.38,665.15,0.30068405]
[1748979962649,1.01068431,665.37,665.15,0.30068405]
[1748979962847,1.01068431,665.36,665.15,0.30068405]
[1748979963148,1.1241618,665.49,665.15,0.30068405]
[1748979963149,1.01068431,665.35,665.15,0.30068405]
[1748979963452,1.01068431,665.34,665.15,0.30068405]
[1748979963652,1.49974279,665.6,665.15,0.30068405]
[1748979963852,1.12414122,665.49,665.15,0.30068405]
[1748979964048,1.00723048,665.48,665.15,0.30068405]
[1748979964249,1.00723048,665.47,665.15,0.30068405]
[1748979964452,1.00723048,665.46,665.15,0.30068405]
[1748979964652,1.12414122,665.49,665.15,0.30068405]
[1748979964653,1.00723048,665.45,665.15,0.30068405]
[1748979964850,1.00723048,665.44,665.15,0.30068405]
[1748979965054,1.00723048,665.43,665.15,0.30068405]
[1748979965255,1.00720255,665.42,665.15,0.30068405]
[1748979965449,1.00720255,665.41,665.15,0.30068405]
[1748979965653,1.00720255,665.4,665.15,0.30068405]
[1748979965855,1.00720255,665.39,665.15,0.30068405]
[1748979966059,1.00720255,665.38,665.15,0.30068405]
[1748979966257,1.00720255,665.37,665.15,0.30068405]
[1748979966552,1.00720255,665.36,665.15,0.30068405]
[1748979966759,1.00720255,665.35,665.15,0.30068405]
[1748979967053,1.00720255,665.34,665.15,0.30068405]
[1748979967258,1.00720255,665.33,665.15,0.30068405]
[1748979967559,1.00720255,665.32,665.15,0.30068405]
[1748979967756,1.00720255,665.31,665.15,0.30068405]
[1748979968059,1.00909669,665.3,665.15,0.30068405]
[1748979968256,1.1241564,665.49,665.15,0.30068405]
[1748979968456,1.00909669,665.48,665.15,0.30068405]
[1748979968657,1.00909669,665.47,665.15,0.30068405]
[1748979968859,1.00909669,665.46,665.15,0.30068405]
[1748979969057,1.00909669,665.45,665.15,0.30068405]
[1748979969253,1.00890091,665.44,665.15,0.30068405]
[1748979969560,1.00890091,665.43,665.15,0.30068405]
[1748979969762,1.00890091,665.42,665.15,0.30068405]
[1748979969954,1.00890091,665.41,665.15,0.30068405]
[1748979970159,1.00890091,665.4,665.15,0.30068405]
[1748979970358,1.00890091,665.39,665.15,0.30068405]
[1748979970558,1.00890091,665.38,665.15,0.30068405]
[1748979970756,1.00890091,665.37,665.15,0.30068405]
[1748979970956,1.00890091,665.36,665.15,0.30068405]
[1748979971258,1.00890091,665.35,665.15,0.30068405]
[1748979971459,1.00890091,665.34,665.15,0.30068405]
[1748979971654,1.00890091,665.33,665.15,0.30068405]
[1748979971859,1.00890091,665.32,665.15,0.30068405]
[1748979972054,1.00890091,665.31,665.15,0.30068405]
[1748979972354,1.12417895,665.49,665.15,0.30068405]
[1748979972558,1.00904292,665.48,665.15,0.30068405]
[1748979972758,1.00904292,665.47,665.15,0.30068405]
[1748979972959,1.00904292,665.46,665.15,0.30068405]
[1748979973161,1.00904292,665.45,665.15,0.30068405]
[1748979973360,1.00904292,665.44,665.15,0.30068405]
[1748979973559,1.00904292,665.43,665.15,0.30068405]
[1748979973861,1.12417895,665.52,665.15,0.30068405]
[1748979973862,1.00904292,665.42,665.15,0.30068405]
[1748979974061,1.00904292,665.41,665.15,0.30068405]
[1748979974361,1.00904292,665.4,665.15,0.30068405]
[1748979974661,1.00904292,665.39,665.15,0.30068405]
[1748979974856,1.00904292,665.38,665.15,0.30068405]
[1748979975056,1.00904292,665.37,665.15,0.30068405]
[1748979975261,1.00904292,665.36,665.15,0.30068405]
[1748979975559,1.00904292,665.35,665.15,0.30068405]
[1748979975762,1.00904292,665.34,665.15,0.30068405]
[1748979976062,1.00904292,665.33,665.15,0.30068405]
[1748979976258,1.12417895,665.52,665.15,0.30068405]
[1748979976458,1.0094898,665.51,665.15,0.30068405]
[1748979976661,1.0094898,665.5,665.15,0.30068405]
[1748979976856,1.0094898,665.49,665.15,0.30068405]
[1748979977060,1.00955297,665.48,665.15,0.30068405]
[1748979977259,1.00955297,665.47,665.15,0.30068405]
[1748979977463,1.00955297,665.46,665.15,0.30068405]
[1748979977664,1.00955297,665.45,665.15,0.30068405]
[1748979977860,1.00955297,665.44,665.15,0.30068405]
[1748979978061,1.00955297,665.43,665.15,0.30068405]
[1748979978257,1.00955297,665.42,665.15,0.30068405]
[1748979978462,1.00955297,665.41,665.15,0.30068405]
[1748979978659,1.00955297,665.4,665.15,0.30068405]
[1748979978858,1.00955297,665.39,665.15,0.30068405]
[1748979979063,1.12447917,665.48,665.15,0.30068405]
[1748979979064,1.00955297,665.38,665.15,0.30068405]
[1748979979263,1.00955297,665.37,665.15,0.30068405]
[1748979979464,1.00955297,665.36,665.15,0.30068405]
[1748979979766,1.00955297,665.35,665.15,0.30068405]
[1748979980065,1.00955297,665.34,665.15,0.30068405]
[1748979980262,1.00955297,665.33,665.15,0.30068405]
[1748979980462,1.00955297,665.32,665.15,0.30068405]
[1748979980673,1.00955297,665.31,665.15,0.30068405]
[1748979980869,1.00955297,665.3,665.15,0.30068405]
[1748979981068,1.01049668,665.29,665.15,0.30068405]
[1748979981269,1.12495801,665.47,665.15,0.30068405]
[1748979981270,1.01049668,665.28,665.15,0.30068405]
[1748979981472,1.01049668,665.27,665.15,0.30068405]
[1748979981669,1.01049668,665.26,665.15,0.30068405]
[1748979981865,1.01049668,665.25,665.15,0.30068405]
[1748979982064,1.01049668,665.24,665.15,0.30068405]
[1748979982371,1.12495801,665.46,665.15,0.30068405]
[1748979982572,1.0112064,665.45,665.15,0.30068405]
[1748979982772,1.0112064,665.44,665.15,0.30068405]
[1748979982971,3.72968431,666.23,665.15,0.30068405]
[1748979982972,1.0112064,665.43,665.15,0.30068405]
[1748979983172,1.0112064,665.42,665.15,0.30068405]
[1748979983371,1.0112064,665.41,665.15,0.30068405]
[1748979983572,1.0112064,665.4,665.15,0.30068405]
[1748979983771,1.0112064,665.39,665.15,0.30068405]
[1748979984071,1.0112064,665.38,665.15,0.30068405]
[1748979984267,1.0112064,665.37,665.15,0.30068405]
[1748979984470,1.0112064,665.36,665.15,0.30068405]
[1748979984667,1.0112064,665.35,665.15,0.30068405]
[1748979984866,1.49974279,665.59,665.15,0.30068405]
[1748979985070,1.12502841,665.45,665.15,0.30068405]
[1748979985266,1.01244395,665.44,665.15,0.30068405]
[1748979985472,1.01244395,665.43,665.15,0.30068405]
[1748979985768,1.01244395,665.42,665.15,0.30068405]
[1748979985972,1.01244395,665.41,665.15,0.30068405]
[1748979986172,1.01244395,665.4,665.15,0.30068405]
[1748979986367,1.01244395,665.39,665.15,0.30068405]
[1748979986671,1.01244395,665.38,665.15,0.30068405]
[1748979986873,1.01244395,665.37,665.15,0.30068405]
[1748979987075,1.01244395,665.36,665.15,0.30068405]
[1748979987269,1.01244395,665.35,665.15,0.30068405]
[1748979987467,1.01244395,665.34,665.15,0.30068405]
[1748979987672,1.01244395,665.33,665.15,0.30068405]
[1748979987874,1.01244395,665.32,665.15,0.30068405]
[1748979988074,1.01244395,665.31,665.15,0.30068405]
[1748979988275,1.01244395,665.3,665.15,0.30068405]
[1748979988474,1.01244395,665.29,665.15,0.30068405]
[1748979988774,1.01244395,665.28,665.15,0.30068405]
[1748979988975,1.01204011,665.27,665.15,0.30068405]
[1748979989273,3.72968431,666.19,665.15,0.30068405]
[1748979989274,1.01204011,665.26,665.15,0.30068405]
[1748979989476,3.72968431,666.19,665.15,0.30068405]
[1748979989775,1.12493997,665.46,665.15,0.30068405]
[1748979989975,2.13696633,665.45,665.15,0.30068405]
[1748979990271,1.12493997,665.43,665.15,0.30068405]
[1748979990470,1.01202636,665.42,665.15,0.30068405]
[1748979990672,1.01202636,665.41,665.15,0.30068405]
[1748979990868,1.01202636,665.4,665.15,0.30068405]
[1748979991072,1.01202636,665.39,665.15,0.30068405]
[1748979991274,1.01202636,665.38,665.15,0.30068405]
[1748979991474,1.01202636,665.37,665.15,0.30068405]
[1748979991674,1.01202636,665.36,665.15,0.30068405]
[1748979991874,1.01202636,665.35,665.15,0.30068405]
[1748979992076,1.01202636,665.34,665.15,0.30068405]
[1748979992270,1.01202636,665.33,665.15,0.30068405]
[1748979992575,1.01202636,665.32,665.15,0.30068405]
[1748979992776,1.01202636,665.31,665.15,0.30068405]
[1748979992975,1.49991996,665.57,665.15,0.30068405]
[1748979993170,1.12486692,665.43,665.15,0.30068405]
[1748979993475,1.01139835,665.42,665.15,0.30068405]
[1748979993675,1.01139835,665.41,665.15,0.30068405]
[1748979993976,1.01139835,665.4,665.15,0.30068405]
[1748979994170,1.01139835,665.39,665.15,0.30068405]
[1748979994370,1.01139835,665.38,665.15,0.30068405]
[1748979994676,1.01139835,665.37,665.15,0.30068405]
[1748979994874,1.01139835,665.36,665.15,0.30068405]
[1748979995073,1.01139835,665.35,665.15,0.30068405]
[1748979995273,1.01139835,665.34,665.15,0.30068405]
[1748979995475,1.01139835,665.33,665.15,0.30068405]
[1748979995673,1.01139835,665.32,665.15,0.30068405]
[1748979995876,1.01139835,665.31,665.15,0.30068405]
[1748979996176,1.01139835,665.3,665.15,0.30068405]
[1748979996376,1.01139835,665.29,665.15,0.30068405]
[1748979996676,1.01139835,665.28,665.15,0.30068405]
[1748979996871,1.12486692,665.44,665.15,0.30068405]
[1748979996872,1.01139835,665.27,665.15,0.30068405]
[1748979997074,1.12486692,665.44,665.15,0.30068405]
[1748979997075,1.01139835,665.26,665.15,0.30068405]
[1748979997275,1.01139835,665.25,665.15,0.30068405]
[1748979997476,1.01139835,665.24,665.15,0.30068405]
[1748979997671,1.01139835,665.23,665.15,0.30068405]
[1748979997878,1.01139835,665.22,665.15,0.30068405]
[1748979998078,1.01139835,665.21,665.15,0.30068405]
[1748979998274,1.01139835,665.2,665.15,0.30068405]
[1748979998481,1.01139835,665.19,665.15,0.30068405]
[1748979998778,1.12486692,665.44,665.15,0.30068405]
[1748979998974,1.01107373,665.43,665.15,0.30068405]
[1748979999174,1.01107373,665.42,665.15,0.30068405]
[1748979999376,1.01107373,665.41,665.15,0.30068405]
[1748979999578,1.01107373,665.4,665.15,0.30068405]
[1748979999777,1.01107373,665.39,665.15,0.30068405]
[1748979999978,1.01107373,665.38,665.15,0.30068405]
[1748980000175,1.01107373,665.37,665.15,0.30068405]
[1748980000376,1.01107373,665.36,665.15,0.30068405]
[1748980000575,1.01107373,665.35,665.15,0.30068405]